[Event "Titled Tuesday Blitz June 28 Late 2022"]
[White "Hoffmann, Asa"]
[Black "Gurevich, Dmitry"]
[WhiteFideId "2001470"]
[BlackFideId "2000407"]
[WhiteElo "2117"]
[BlackElo "2506"]
[Result "0-1"]
[Round "09"]
[TimeControl "180+1"]
[Date "2022.06.29"]
[WhiteClock "0:00:15"]
[BlackClock "0:00:06"]

1. d4 {[%clk 0:02:56]}  Nf6 {[%clk 0:02:59]} 2. Bg5 {[%clk 0:02:55]}  c5 {[%clk 0:02:58]} 3. d5 {[%clk 0:02:54]}  d6 {[%clk 0:02:56]} 4. Nc3 {[%clk 0:02:54]}  g6 {[%clk 0:02:55]} 5. Qd2 {[%clk 0:02:51]}  h6 {[%clk 0:02:45]} 6. Bf4 {[%clk 0:02:49]}  g5 {[%clk 0:02:40]} 7. Bg3 {[%clk 0:02:47]}  Nh5 {[%clk 0:02:39]} 8. e4 {[%clk 0:02:47]}  Bg7 {[%clk 0:02:37]} 9. Be2 {[%clk 0:02:42]}  Nxg3 {[%clk 0:02:36]} 10. hxg3 {[%clk 0:02:42]}  a6 {[%clk 0:02:36]} 11. a4 {[%clk 0:02:40]}  Qb6 {[%clk 0:02:33]} 12. Ra2 {[%clk 0:02:29]}  Qb4 {[%clk 0:02:09]} 13. Nf3 {[%clk 0:02:23]}  Nd7 {[%clk 0:02:03]} 14. O-O {[%clk 0:02:19]}  Ne5 {[%clk 0:01:58]} 15. a5 {[%clk 0:02:15]}  Nxf3+ {[%clk 0:01:51]} 16. gxf3 {[%clk 0:02:12]}  Bd7 {[%clk 0:01:42]} 17. Kg2 {[%clk 0:02:08]}  Bf6 {[%clk 0:01:38]} 18. Rd1 {[%clk 0:01:52]}  h5 {[%clk 0:01:37]} 19. Nb1 {[%clk 0:01:51]}  Qxd2 {[%clk 0:01:31]} 20. Nxd2 {[%clk 0:01:51]}  h4 {[%clk 0:01:27]} 21. Rh1 {[%clk 0:01:47]}  h3+ {[%clk 0:01:11]} 22. Kf1 {[%clk 0:01:47]}  h2 {[%clk 0:01:05]} 23. g4 {[%clk 0:01:45]}  Be5 {[%clk 0:01:01]} 24. Nc4 {[%clk 0:01:43]}  Bf4 {[%clk 0:01:01]} 25. Bd3 {[%clk 0:01:40]}  Bb5 {[%clk 0:00:55]} 26. Ke2 {[%clk 0:01:38]}  Bxc4 {[%clk 0:00:48]} 27. Bxc4 {[%clk 0:01:38]}  Rb8 {[%clk 0:00:48]} 28. c3 {[%clk 0:01:31]}  f6 {[%clk 0:00:46]} 29. b3 {[%clk 0:01:26]}  Kf7 {[%clk 0:00:45]} 30. Raa1 {[%clk 0:01:16]}  b5 {[%clk 0:00:44]} 31. axb6 {[%clk 0:01:14]}  Rxb6 {[%clk 0:00:44]} 32. Ra4 {[%clk 0:01:04]}  Rhb8 {[%clk 0:00:40]} 33. Ra3 {[%clk 0:01:03]}  Be5 {[%clk 0:00:38]} 34. Kd3 {[%clk 0:01:02]}  a5 {[%clk 0:00:35]} 35. Ke2 {[%clk 0:01:01]}  a4 {[%clk 0:00:32]} 36. Rxa4 {[%clk 0:00:58]}  Rxb3 {[%clk 0:00:32]} 37. Bxb3 {[%clk 0:00:57]}  Rxb3 {[%clk 0:00:32]} 38. Ra2 {[%clk 0:00:50]}  Rxc3 {[%clk 0:00:27]} 39. Rd2 {[%clk 0:00:46]}  c4 {[%clk 0:00:26]} 40. Rdd1 {[%clk 0:00:41]}  Rb3 {[%clk 0:00:23]} 41. Rc1 {[%clk 0:00:40]}  Rb2+ {[%clk 0:00:23]} 42. Kf1 {[%clk 0:00:38]}  c3 {[%clk 0:00:19]} 43. Kg2 {[%clk 0:00:37]}  Ke8 {[%clk 0:00:15]} 44. Rxh2 {[%clk 0:00:37]}  Bxh2 {[%clk 0:00:14]} 45. Kxh2 {[%clk 0:00:37]}  Rb3 {[%clk 0:00:10]} 46. Kg3 {[%clk 0:00:33]}  Kd7 {[%clk 0:00:10]} 47. Rc2 {[%clk 0:00:32]}  Kc7 {[%clk 0:00:10]} 48. f4 {[%clk 0:00:32]}  Kb6 {[%clk 0:00:10]} 49. fxg5 {[%clk 0:00:30]}  fxg5 {[%clk 0:00:10]} 50. f4 {[%clk 0:00:30]}  gxf4+ {[%clk 0:00:11]} 51. Kxf4 {[%clk 0:00:30]}  Kc5 {[%clk 0:00:11]} 52. g5 {[%clk 0:00:29]}  Kd4 {[%clk 0:00:11]} 53. g6 {[%clk 0:00:29]}  Kd3 {[%clk 0:00:11]} 54. Rxc3+ {[%clk 0:00:22]}  Kxc3 {[%clk 0:00:10]} 55. Kf5 {[%clk 0:00:20]}  Kd4 {[%clk 0:00:08]} 56. g7 {[%clk 0:00:17]}  Rg3 {[%clk 0:00:07]} 57. Ke6 {[%clk 0:00:15]}  Kxe4 {[%clk 0:00:06]} 0-1


[Site "https://www.chess.com"]

[Event "Titled Tuesday Blitz June 28 Late 2022"]
[White "Ipek, Egehan"]
[Black "Averjanov, Alexey"]
[WhiteFideId "44523793"]
[BlackFideId "14109867"]
[WhiteElo "1413"]
[BlackElo "2644"]
[Result "0-1"]
[Round "09"]
[TimeControl "180+1"]
[Date "2022.06.29"]
[WhiteClock "0:00:13"]
[BlackClock "0:00:34"]

1. c4 {[%clk 0:02:22]}  c5 {[%clk 0:02:58]} 2. g3 {[%clk 0:02:21]}  Nc6 {[%clk 0:02:58]} 3. Bg2 {[%clk 0:02:22]}  g6 {[%clk 0:02:59]} 4. Nf3 {[%clk 0:02:22]}  Bg7 {[%clk 0:02:59]} 5. O-O {[%clk 0:02:23]}  e6 {[%clk 0:03:00]} 6. Nc3 {[%clk 0:02:23]}  Nge7 {[%clk 0:03:00]} 7. d3 {[%clk 0:02:24]}  O-O {[%clk 0:03:00]} 8. Rb1 {[%clk 0:02:25]}  d5 {[%clk 0:03:00]} 9. cxd5 {[%clk 0:02:25]}  exd5 {[%clk 0:03:01]} 10. a3 {[%clk 0:02:26]}  a5 {[%clk 0:03:01]} 11. Bf4 {[%clk 0:02:19]}  b6 {[%clk 0:02:58]} 12. Nb5 {[%clk 0:02:19]}  Bb7 {[%clk 0:02:55]} 13. Qd2 {[%clk 0:02:13]}  Rc8 {[%clk 0:02:53]} 14. Nd6 {[%clk 0:02:12]}  Rc7 {[%clk 0:02:53]} 15. Nxb7 {[%clk 0:02:07]}  Rxb7 {[%clk 0:02:54]} 16. Bh6 {[%clk 0:02:05]}  Re8 {[%clk 0:02:53]} 17. Bxg7 {[%clk 0:02:05]}  Kxg7 {[%clk 0:02:54]} 18. d4 {[%clk 0:02:04]}  c4 {[%clk 0:02:53]} 19. Ne5 {[%clk 0:02:00]}  b5 {[%clk 0:02:51]} 20. f4 {[%clk 0:01:54]}  f6 {[%clk 0:02:50]} 21. Nxc6 {[%clk 0:01:31]}  Nxc6 {[%clk 0:02:51]} 22. Rfe1 {[%clk 0:01:29]}  Rbe7 {[%clk 0:02:51]} 23. e3 {[%clk 0:01:20]}  b4 {[%clk 0:02:51]} 24. axb4 {[%clk 0:01:19]}  axb4 {[%clk 0:02:52]} 25. Ra1 {[%clk 0:01:18]}  Qd7 {[%clk 0:02:48]} 26. Ra6 {[%clk 0:01:11]}  f5 {[%clk 0:02:43]} 27. Qf2 {[%clk 0:01:07]}  Nxd4 {[%clk 0:02:25]} 28. Rd1 {[%clk 0:00:56]}  Qb5 {[%clk 0:02:24]} 29. Rd6 {[%clk 0:00:49]}  Ne6 {[%clk 0:02:06]} 30. R1xd5 {[%clk 0:00:49]}  Nc5 {[%clk 0:02:04]} 31. e4 {[%clk 0:00:48]}  Rc8 {[%clk 0:01:49]} 32. e5 {[%clk 0:00:48]}  c3 {[%clk 0:01:47]} 33. bxc3 {[%clk 0:00:48]}  bxc3 {[%clk 0:01:47]} 34. Qc2 {[%clk 0:00:44]}  Rec7 {[%clk 0:01:42]} 35. Qxc3 {[%clk 0:00:34]}  Qb1+ {[%clk 0:01:41]} 36. Bf1 {[%clk 0:00:32]}  Kh6 {[%clk 0:01:31]} 37. g4 {[%clk 0:00:28]}  fxg4 {[%clk 0:01:25]} 38. Qe3 {[%clk 0:00:27]}  Qe4 {[%clk 0:01:10]} 39. Qg3 {[%clk 0:00:26]}  Qf5 {[%clk 0:01:00]} 40. Rf6 {[%clk 0:00:24]}  Qh5 {[%clk 0:00:56]} 41. f5 {[%clk 0:00:16]}  Ne4 {[%clk 0:00:55]} 42. Qe3+ {[%clk 0:00:16]}  Ng5 {[%clk 0:00:44]} 43. fxg6 {[%clk 0:00:17]}  hxg6 {[%clk 0:00:44]} 44. e6 {[%clk 0:00:18]}  Rc1 {[%clk 0:00:41]} 45. Rf7 {[%clk 0:00:14]}  R8c2 {[%clk 0:00:37]} 46. Rxg5 {[%clk 0:00:13]}  Qxh2# {[%clk 0:00:34]} 0-1


[Site "https://www.chess.com"]

[Event "Titled Tuesday Blitz June 28 Late 2022"]
[White "Janturin, Artur"]
[Black "Samsonkin, Artiom"]
[WhiteFideId "4130022"]
[BlackFideId "13503111"]
[WhiteElo "2383"]
[BlackElo "2513"]
[Result "0-1"]
[Round "09"]
[TimeControl "180+1"]
[Date "2022.06.29"]
[WhiteClock "0:00:04"]
[BlackClock "0:00:11"]

1. b3 {[%clk 0:03:00]}  e5 {[%clk 0:02:54]} 2. Bb2 {[%clk 0:03:00]}  Nc6 {[%clk 0:02:49]} 3. e3 {[%clk 0:03:01]}  a6 {[%clk 0:02:46]} 4. Nf3 {[%clk 0:02:51]}  e4 {[%clk 0:02:42]} 5. Nd4 {[%clk 0:02:51]}  Nf6 {[%clk 0:02:32]} 6. d3 {[%clk 0:02:50]}  d5 {[%clk 0:01:50]} 7. Nxc6 {[%clk 0:02:43]}  bxc6 {[%clk 0:01:51]} 8. Nd2 {[%clk 0:02:44]}  Bd6 {[%clk 0:01:35]} 9. Be2 {[%clk 0:02:37]}  O-O {[%clk 0:01:29]} 10. O-O {[%clk 0:02:29]}  exd3 {[%clk 0:01:25]} 11. cxd3 {[%clk 0:02:28]}  c5 {[%clk 0:01:25]} 12. Qc2 {[%clk 0:02:20]}  d4 {[%clk 0:01:21]} 13. e4 {[%clk 0:01:57]}  Bg4 {[%clk 0:00:50]} 14. Bxg4 {[%clk 0:01:46]}  Bxh2+ {[%clk 0:00:38]} 15. Kxh2 {[%clk 0:01:43]}  Nxg4+ {[%clk 0:00:39]} 16. Kg1 {[%clk 0:01:43]}  f5 {[%clk 0:00:27]} 17. Qxc5 {[%clk 0:01:13]}  fxe4 {[%clk 0:00:17]} 18. Qxd4 {[%clk 0:01:09]}  Qg5 {[%clk 0:00:17]} 19. Nxe4 {[%clk 0:01:07]}  Qh6 {[%clk 0:00:17]} 20. Qd5+ {[%clk 0:00:22]}  Kh8 {[%clk 0:00:13]} 21. Be5 {[%clk 0:00:22]}  Rad8 {[%clk 0:00:12]} 22. Qc5 {[%clk 0:00:15]}  Rf5 {[%clk 0:00:10]} 23. Bxg7+ {[%clk 0:00:10]}  Kxg7 {[%clk 0:00:11]} 24. Qxc7+ {[%clk 0:00:10]}  Rf7 {[%clk 0:00:10]} 25. Qg3 {[%clk 0:00:10]}  Qg6 {[%clk 0:00:09]} 26. f3 {[%clk 0:00:09]}  Ne3 {[%clk 0:00:08]} 27. Qxg6+ {[%clk 0:00:09]}  hxg6 {[%clk 0:00:09]} 28. Rfc1 {[%clk 0:00:08]}  Rxd3 {[%clk 0:00:09]} 29. Kf2 {[%clk 0:00:07]}  Nd5 {[%clk 0:00:06]} 30. Rd1 {[%clk 0:00:06]}  Nf4 {[%clk 0:00:03]} 31. Rxd3 {[%clk 0:00:06]}  Nxd3+ {[%clk 0:00:04]} 32. Ke3 {[%clk 0:00:06]}  Nf4 {[%clk 0:00:04]} 33. Rc1 {[%clk 0:00:07]}  Nxg2+ {[%clk 0:00:04]} 34. Kf2 {[%clk 0:00:07]}  Nf4 {[%clk 0:00:05]} 35. Ke3 {[%clk 0:00:07]}  Ng2+ {[%clk 0:00:05]} 36. Kf2 {[%clk 0:00:07]}  Nh4 {[%clk 0:00:05]} 37. Rc3 {[%clk 0:00:07]}  Rd7 {[%clk 0:00:05]} 38. Kg3 {[%clk 0:00:07]}  Nf5+ {[%clk 0:00:06]} 39. Kf4 {[%clk 0:00:08]}  Nd4 {[%clk 0:00:06]} 40. Rc5 {[%clk 0:00:07]}  Ne6+ {[%clk 0:00:06]} 41. Ke5 {[%clk 0:00:07]}  Nxc5 {[%clk 0:00:07]} 42. Nxc5 {[%clk 0:00:07]}  Re7+ {[%clk 0:00:08]} 43. Kd4 {[%clk 0:00:07]}  Re2 {[%clk 0:00:08]} 44. a4 {[%clk 0:00:06]}  Rf2 {[%clk 0:00:08]} 45. Ke3 {[%clk 0:00:07]}  Rb2 {[%clk 0:00:09]} 46. a5 {[%clk 0:00:06]}  Kf6 {[%clk 0:00:08]} 47. f4 {[%clk 0:00:05]}  Kf5 {[%clk 0:00:08]} 48. Kd4 {[%clk 0:00:04]}  Ra2 {[%clk 0:00:08]} 49. Kc4 {[%clk 0:00:05]}  Kxf4 {[%clk 0:00:08]} 50. b4 {[%clk 0:00:05]}  g5 {[%clk 0:00:08]} 51. Nxa6 {[%clk 0:00:06]}  g4 {[%clk 0:00:08]} 52. Nc5 {[%clk 0:00:05]}  g3 {[%clk 0:00:09]} 53. Nd3+ {[%clk 0:00:05]}  Ke3 {[%clk 0:00:09]} 54. Ne1 {[%clk 0:00:04]}  Re2 {[%clk 0:00:09]} 55. a6 {[%clk 0:00:03]}  Rxe1 {[%clk 0:00:09]} 56. b5 {[%clk 0:00:03]}  Rc1+ {[%clk 0:00:09]} 57. Kd5 {[%clk 0:00:03]}  Ra1 {[%clk 0:00:10]} 58. b6 {[%clk 0:00:03]}  g2 {[%clk 0:00:11]} 59. a7 {[%clk 0:00:04]}  g1=Q {[%clk 0:00:11]} 60. b7 {[%clk 0:00:04]}  Qg2+ {[%clk 0:00:11]} 0-1


[Site "https://www.chess.com"]

[Event "Titled Tuesday Blitz June 28 Late 2022"]
[White "Kamsky, Gata"]
[Black "Ladopoulos, Dimitrios"]
[WhiteFideId "2000024"]
[BlackFideId "4239580"]
[WhiteElo "2645"]
[BlackElo "2195"]
[Result "1-0"]
[Round "09"]
[TimeControl "180+1"]
[Date "2022.06.28"]
[WhiteClock "0:00:05"]
[BlackClock "0:00:02"]

1. d4 {[%clk 0:03:00]}  e6 {[%clk 0:02:56]} 2. Bf4 {[%clk 0:02:59]}  f5 {[%clk 0:02:52]} 3. e3 {[%clk 0:02:58]}  Nf6 {[%clk 0:02:51]} 4. Nf3 {[%clk 0:02:54]}  b6 {[%clk 0:02:51]} 5. Be2 {[%clk 0:02:50]}  Bb7 {[%clk 0:02:51]} 6. c4 {[%clk 0:02:49]}  Bb4+ {[%clk 0:02:51]} 7. Nbd2 {[%clk 0:02:44]}  O-O {[%clk 0:02:49]} 8. O-O {[%clk 0:02:35]}  Bxd2 {[%clk 0:02:48]} 9. Nxd2 {[%clk 0:02:34]}  d6 {[%clk 0:02:48]} 10. h3 {[%clk 0:02:28]}  Nbd7 {[%clk 0:02:47]} 11. Bh2 {[%clk 0:02:28]}  Qe8 {[%clk 0:02:40]} 12. f3 {[%clk 0:02:25]}  e5 {[%clk 0:02:35]} 13. d5 {[%clk 0:02:24]}  a5 {[%clk 0:02:16]} 14. Bd3 {[%clk 0:02:18]}  e4 {[%clk 0:02:11]} 15. fxe4 {[%clk 0:02:16]}  Nc5 {[%clk 0:02:11]} 16. Qc2 {[%clk 0:01:50]}  Nxd3 {[%clk 0:01:56]} 17. Qxd3 {[%clk 0:01:50]}  Nxe4 {[%clk 0:01:51]} 18. Nxe4 {[%clk 0:01:49]}  Qxe4 {[%clk 0:01:52]} 19. Qxe4 {[%clk 0:01:49]}  fxe4 {[%clk 0:01:53]} 20. Rxf8+ {[%clk 0:01:45]}  Rxf8 {[%clk 0:01:54]} 21. b3 {[%clk 0:01:44]}  a4 {[%clk 0:01:49]} 22. b4 {[%clk 0:01:40]}  Rd8 {[%clk 0:01:07]} 23. b5 {[%clk 0:01:33]}  Bc8 {[%clk 0:00:57]} 24. Kf2 {[%clk 0:01:31]}  Bd7 {[%clk 0:00:56]} 25. Ke2 {[%clk 0:01:30]}  Rf8 {[%clk 0:00:53]} 26. Rb1 {[%clk 0:01:20]}  Be8 {[%clk 0:00:53]} 27. Rb4 {[%clk 0:01:17]}  Bh5+ {[%clk 0:00:52]} 28. Ke1 {[%clk 0:01:17]}  Ra8 {[%clk 0:00:51]} 29. a3 {[%clk 0:01:14]}  Kf7 {[%clk 0:00:50]} 30. Rb2 {[%clk 0:01:01]}  Ke7 {[%clk 0:00:48]} 31. Rf2 {[%clk 0:00:54]}  Rf8 {[%clk 0:00:39]} 32. Rxf8 {[%clk 0:00:53]}  Kxf8 {[%clk 0:00:40]} 33. Kd2 {[%clk 0:00:53]}  Ke7 {[%clk 0:00:38]} 34. g4 {[%clk 0:00:52]}  Bg6 {[%clk 0:00:39]} 35. Kc3 {[%clk 0:00:52]}  h5 {[%clk 0:00:38]} 36. Kb4 {[%clk 0:00:50]}  hxg4 {[%clk 0:00:35]} 37. hxg4 {[%clk 0:00:50]}  Be8 {[%clk 0:00:31]} 38. Bf4 {[%clk 0:00:47]}  Bd7 {[%clk 0:00:29]} 39. g5 {[%clk 0:00:45]}  Bg4 {[%clk 0:00:29]} 40. Kxa4 {[%clk 0:00:45]}  Be2 {[%clk 0:00:29]} 41. Kb4 {[%clk 0:00:45]}  g6 {[%clk 0:00:28]} 42. Bg3 {[%clk 0:00:43]}  Kd7 {[%clk 0:00:28]} 43. Be1 {[%clk 0:00:42]}  Bf1 {[%clk 0:00:27]} 44. a4 {[%clk 0:00:40]}  Be2 {[%clk 0:00:27]} 45. Kc3 {[%clk 0:00:40]}  Bf1 {[%clk 0:00:11]} 46. Kd4 {[%clk 0:00:40]}  Be2 {[%clk 0:00:11]} 47. a5 {[%clk 0:00:40]}  bxa5 {[%clk 0:00:11]} 48. Bxa5 {[%clk 0:00:40]}  Bd3 {[%clk 0:00:10]} 49. Kc3 {[%clk 0:00:39]}  Be2 {[%clk 0:00:10]} 50. Kb4 {[%clk 0:00:31]}  Bf1 {[%clk 0:00:10]} 51. c5 {[%clk 0:00:30]}  dxc5+ {[%clk 0:00:10]} 52. Kxc5 {[%clk 0:00:31]}  Be2 {[%clk 0:00:10]} 53. Bc3 {[%clk 0:00:30]}  Bd3 {[%clk 0:00:09]} 54. Be5 {[%clk 0:00:30]}  Bb1 {[%clk 0:00:08]} 55. d6 {[%clk 0:00:16]}  cxd6+ {[%clk 0:00:06]} 56. Bxd6 {[%clk 0:00:16]}  Bd3 {[%clk 0:00:03]} 57. Bf4 {[%clk 0:00:17]}  Kc8 {[%clk 0:00:02]} 58. Kc6 {[%clk 0:00:16]}  Bc4 {[%clk 0:00:01]} 59. b6 {[%clk 0:00:17]}  Ba6 {[%clk 0:00:02]} 60. Be5 {[%clk 0:00:16]}  Bb7+ {[%clk 0:00:02]} 61. Kd6 {[%clk 0:00:16]}  Ba6 {[%clk 0:00:02]} 62. Ke6 {[%clk 0:00:16]}  Be2 {[%clk 0:00:02]} 63. Kf6 {[%clk 0:00:14]}  Bh5 {[%clk 0:00:02]} 64. Bd4 {[%clk 0:00:04]}  Kb7 {[%clk 0:00:03]} 65. Ke5 {[%clk 0:00:03]}  Bf3 {[%clk 0:00:03]} 66. Kf6 {[%clk 0:00:03]}  Bh5 {[%clk 0:00:02]} 67. Ke5 {[%clk 0:00:04]}  Bf3 {[%clk 0:00:02]} 68. Kd5 {[%clk 0:00:04]}  Bg2 {[%clk 0:00:01]} 69. Kd6 {[%clk 0:00:04]}  Bf3 {[%clk 0:00:02]} 70. Ke5 {[%clk 0:00:04]}  Bg2 {[%clk 0:00:02]} 71. Kf6 {[%clk 0:00:05]} 1-0


[Site "https://www.chess.com"]

[Event "Titled Tuesday Blitz June 28 Late 2022"]
[White "Kim, Sergey"]
[Black "Mickiewicz, Piotr"]
[WhiteFideId "13700570"]
[BlackFideId "1114891"]
[WhiteElo "2597"]
[BlackElo "2209"]
[Result "0-1"]
[Round "09"]
[TimeControl "180+1"]
[Date "2022.06.28"]
[WhiteClock "0:00:02"]
[BlackClock "0:00:17"]

1. d4 {[%clk 0:02:56]}  Nf6 {[%clk 0:02:59]} 2. c4 {[%clk 0:02:56]}  g6 {[%clk 0:03:00]} 3. Nc3 {[%clk 0:02:56]}  Bg7 {[%clk 0:03:01]} 4. e4 {[%clk 0:02:56]}  d6 {[%clk 0:03:01]} 5. Nge2 {[%clk 0:02:56]}  O-O {[%clk 0:03:02]} 6. Ng3 {[%clk 0:02:56]}  c5 {[%clk 0:03:02]} 7. d5 {[%clk 0:02:56]}  e6 {[%clk 0:03:02]} 8. Be2 {[%clk 0:02:56]}  exd5 {[%clk 0:03:02]} 9. cxd5 {[%clk 0:02:57]}  a6 {[%clk 0:03:02]} 10. a4 {[%clk 0:02:56]}  Nbd7 {[%clk 0:03:03]} 11. O-O {[%clk 0:02:56]}  Re8 {[%clk 0:03:00]} 12. Bf4 {[%clk 0:02:56]}  Ne5 {[%clk 0:02:54]} 13. Qd2 {[%clk 0:02:56]}  Qa5 {[%clk 0:02:48]} 14. Bh6 {[%clk 0:02:55]}  Qb4 {[%clk 0:02:42]} 15. Bxg7 {[%clk 0:02:53]}  Kxg7 {[%clk 0:02:42]} 16. Kh1 {[%clk 0:02:37]}  Nc4 {[%clk 0:02:38]} 17. Bxc4 {[%clk 0:02:36]}  Qxc4 {[%clk 0:02:39]} 18. f4 {[%clk 0:02:32]}  Qd4 {[%clk 0:02:25]} 19. Qc2 {[%clk 0:02:28]}  Ng4 {[%clk 0:02:25]} 20. Qe2 {[%clk 0:02:17]}  Qe3 {[%clk 0:02:17]} 21. Qc2 {[%clk 0:02:15]}  Qd4 {[%clk 0:02:15]} 22. Rf3 {[%clk 0:02:10]}  Ne3 {[%clk 0:02:02]} 23. Qe2 {[%clk 0:02:09]}  Nf5 {[%clk 0:01:33]} 24. Rd1 {[%clk 0:01:56]}  Qb4 {[%clk 0:01:32]} 25. Nxf5+ {[%clk 0:01:50]}  Bxf5 {[%clk 0:01:32]} 26. Re3 {[%clk 0:01:49]}  Bd7 {[%clk 0:01:29]} 27. e5 {[%clk 0:01:49]}  Qxf4 {[%clk 0:01:26]} 28. Rf1 {[%clk 0:01:42]}  Qd4 {[%clk 0:01:19]} 29. e6 {[%clk 0:01:38]}  fxe6 {[%clk 0:01:15]} 30. dxe6 {[%clk 0:01:38]}  Bc6 {[%clk 0:01:15]} 31. Rf7+ {[%clk 0:01:26]}  Kg8 {[%clk 0:01:14]} 32. Rh3 {[%clk 0:01:14]}  Qe5 {[%clk 0:00:27]} 33. Qxe5 {[%clk 0:01:07]}  dxe5 {[%clk 0:00:28]} 34. Rfxh7 {[%clk 0:01:07]}  Rad8 {[%clk 0:00:17]} 35. Kg1 {[%clk 0:00:40]}  Rd2 {[%clk 0:00:16]} 36. e7 {[%clk 0:00:33]}  Rxg2+ {[%clk 0:00:15]} 37. Kf1 {[%clk 0:00:32]}  Rxb2 {[%clk 0:00:16]} 38. R3h6 {[%clk 0:00:29]}  e4 {[%clk 0:00:12]} 39. Ke1 {[%clk 0:00:26]}  e3 {[%clk 0:00:11]} 40. Ne2 {[%clk 0:00:22]}  Bf3 {[%clk 0:00:10]} 41. Rh8+ {[%clk 0:00:17]}  Kf7 {[%clk 0:00:10]} 42. R6h7+ {[%clk 0:00:17]}  Ke6 {[%clk 0:00:09]} 43. Rxe8 {[%clk 0:00:16]}  Rxe2+ {[%clk 0:00:09]} 44. Kd1 {[%clk 0:00:14]}  Rd2+ {[%clk 0:00:09]} 45. Kc1 {[%clk 0:00:14]}  Rd1+ {[%clk 0:00:10]} 46. Kc2 {[%clk 0:00:14]}  Rd2+ {[%clk 0:00:10]} 47. Kc3 {[%clk 0:00:13]}  Rd7 {[%clk 0:00:10]} 48. Rf8 {[%clk 0:00:11]}  Rxe7 {[%clk 0:00:10]} 49. Rxf3 {[%clk 0:00:10]}  Rxh7 {[%clk 0:00:09]} 50. Rxe3+ {[%clk 0:00:09]}  Kd5 {[%clk 0:00:09]} 51. Rd3+ {[%clk 0:00:10]}  Kc6 {[%clk 0:00:09]} 52. Rg3 {[%clk 0:00:09]}  Rxh2 {[%clk 0:00:09]} 53. Rxg6+ {[%clk 0:00:09]}  Kd5 {[%clk 0:00:09]} 54. Rg5+ {[%clk 0:00:08]}  Kc6 {[%clk 0:00:09]} 55. Rg6+ {[%clk 0:00:09]}  Kc7 {[%clk 0:00:10]} 56. Rg7+ {[%clk 0:00:09]}  Kb6 {[%clk 0:00:10]} 57. Kc4 {[%clk 0:00:07]}  Rh4+ {[%clk 0:00:09]} 58. Kb3 {[%clk 0:00:08]}  Rb4+ {[%clk 0:00:09]} 59. Ka3 {[%clk 0:00:08]}  Rd4 {[%clk 0:00:10]} 60. Rg6+ {[%clk 0:00:07]}  Ka5 {[%clk 0:00:10]} 61. Rg7 {[%clk 0:00:07]}  Rd3+ {[%clk 0:00:11]} 62. Kb2 {[%clk 0:00:06]}  b5 {[%clk 0:00:12]} 63. axb5 {[%clk 0:00:04]}  axb5 {[%clk 0:00:13]} 64. Rc7 {[%clk 0:00:03]}  c4 {[%clk 0:00:13]} 65. Kc2 {[%clk 0:00:03]}  Kb4 {[%clk 0:00:13]} 66. Rg7 {[%clk 0:00:02]}  Rc3+ {[%clk 0:00:14]} 67. Kb2 {[%clk 0:00:02]}  Rb3+ {[%clk 0:00:15]} 68. Kc2 {[%clk 0:00:02]}  Rf3 {[%clk 0:00:16]} 69. Kb2 {[%clk 0:00:02]}  Rf2+ {[%clk 0:00:16]} 70. Kc1 {[%clk 0:00:02]}  c3 {[%clk 0:00:16]} 71. Rc7 {[%clk 0:00:02]}  Kb3 {[%clk 0:00:17]} 0-1


[Site "https://www.chess.com"]

[Event "Titled Tuesday Blitz June 28 Late 2022"]
[White "Kovacevic, Radmila"]
[Black "D`Arruda, Ricardo D."]
[WhiteFideId "933171"]
[BlackFideId "100692"]
[WhiteElo "2115"]
[BlackElo "2437"]
[Result "1-0"]
[Round "09"]
[TimeControl "180+1"]
[Date "2022.06.29"]
[WhiteClock "0:00:58"]
[BlackClock "0:00:23"]

1. e4 {[%clk 0:03:00]}  c5 {[%clk 0:02:59]} 2. Nf3 {[%clk 0:03:00]}  Nc6 {[%clk 0:02:59]} 3. d4 {[%clk 0:03:00]}  cxd4 {[%clk 0:02:59]} 4. c3 {[%clk 0:03:01]}  dxc3 {[%clk 0:02:58]} 5. Bc4 {[%clk 0:03:01]}  e6 {[%clk 0:02:59]} 6. O-O {[%clk 0:03:01]}  cxb2 {[%clk 0:02:53]} 7. Bxb2 {[%clk 0:03:00]}  d6 {[%clk 0:02:54]} 8. Nbd2 {[%clk 0:02:54]}  Nf6 {[%clk 0:02:53]} 9. h3 {[%clk 0:02:51]}  Be7 {[%clk 0:02:53]} 10. Re1 {[%clk 0:02:51]}  O-O {[%clk 0:02:53]} 11. Rc1 {[%clk 0:02:50]}  d5 {[%clk 0:02:46]} 12. exd5 {[%clk 0:02:40]}  exd5 {[%clk 0:02:47]} 13. Bd3 {[%clk 0:02:38]}  h6 {[%clk 0:02:29]} 14. Bb1 {[%clk 0:02:35]}  Re8 {[%clk 0:01:30]} 15. a3 {[%clk 0:02:21]}  Bd7 {[%clk 0:01:22]} 16. Qc2 {[%clk 0:02:20]}  g6 {[%clk 0:01:20]} 17. Nh4 {[%clk 0:02:09]}  Ne4 {[%clk 0:01:09]} 18. Nxe4 {[%clk 0:01:43]}  Bxh4 {[%clk 0:01:09]} 19. Qc3 {[%clk 0:01:40]}  d4 {[%clk 0:01:09]} 20. Qf3 {[%clk 0:01:32]}  Bf5 {[%clk 0:01:07]} 21. g4 {[%clk 0:01:16]}  Bxe4 {[%clk 0:01:06]} 22. Rxe4 {[%clk 0:01:13]}  Rxe4 {[%clk 0:01:07]} 23. Bxe4 {[%clk 0:01:12]}  Rc8 {[%clk 0:00:51]} 24. Qb3 {[%clk 0:01:07]}  Na5 {[%clk 0:00:42]} 25. Rxc8 {[%clk 0:01:03]}  Qxc8 {[%clk 0:00:43]} 26. Qd5 {[%clk 0:01:03]}  Qe6 {[%clk 0:00:32]} 27. Qxd4 {[%clk 0:00:58]}  f6 {[%clk 0:00:23]} 28. Bd5 {[%clk 0:00:58]} 1-0


[Site "https://www.chess.com"]

[Event "Titled Tuesday Blitz June 28 Late 2022"]
[White "Laurusas, Tomas"]
[Black "Katz, Alexander"]
[WhiteFideId "12803731"]
[BlackFideId "2039796"]
[WhiteElo "2442"]
[BlackElo "2371"]
[Result "1-0"]
[Round "09"]
[TimeControl "180+1"]
[Date "2022.06.28"]
[WhiteClock "0:00:05"]
[BlackClock "0:00:05"]

1. d4 {[%clk 0:03:00]}  d5 {[%clk 0:02:59]} 2. c4 {[%clk 0:02:50]}  c6 {[%clk 0:02:59]} 3. Nf3 {[%clk 0:02:50]}  Nf6 {[%clk 0:03:00]} 4. Nc3 {[%clk 0:02:50]}  e6 {[%clk 0:03:00]} 5. e3 {[%clk 0:02:50]}  Nbd7 {[%clk 0:03:00]} 6. Be2 {[%clk 0:02:51]}  dxc4 {[%clk 0:03:00]} 7. a4 {[%clk 0:02:50]}  Bb4 {[%clk 0:02:55]} 8. O-O {[%clk 0:02:49]}  O-O {[%clk 0:02:55]} 9. Bxc4 {[%clk 0:02:48]}  Qe7 {[%clk 0:02:55]} 10. a5 {[%clk 0:02:37]}  e5 {[%clk 0:02:54]} 11. Qc2 {[%clk 0:02:33]}  e4 {[%clk 0:02:28]} 12. Ng5 {[%clk 0:02:23]}  Bxc3 {[%clk 0:02:27]} 13. bxc3 {[%clk 0:02:24]}  h6 {[%clk 0:02:26]} 14. Ba3 {[%clk 0:02:22]}  c5 {[%clk 0:02:27]} 15. Nh3 {[%clk 0:02:10]}  b6 {[%clk 0:02:26]} 16. axb6 {[%clk 0:02:06]}  Nxb6 {[%clk 0:01:46]} 17. Bxc5 {[%clk 0:02:04]}  Qc7 {[%clk 0:01:46]} 18. Bxf8 {[%clk 0:01:48]}  Bxh3 {[%clk 0:01:44]} 19. gxh3 {[%clk 0:01:42]}  Nxc4 {[%clk 0:01:27]} 20. Bc5 {[%clk 0:01:38]}  Qd7 {[%clk 0:01:26]} 21. Kh1 {[%clk 0:01:26]}  Qxh3 {[%clk 0:01:24]} 22. Rg1 {[%clk 0:01:25]}  Rb8 {[%clk 0:01:10]} 23. Rab1 {[%clk 0:00:52]}  Qf3+ {[%clk 0:00:43]} 24. Rg2 {[%clk 0:00:52]}  Rxb1+ {[%clk 0:00:42]} 25. Qxb1 {[%clk 0:00:53]}  Ng4 {[%clk 0:00:41]} 26. Qb8+ {[%clk 0:00:51]}  Kh7 {[%clk 0:00:41]} 27. Qg3 {[%clk 0:00:52]}  f5 {[%clk 0:00:19]} 28. h3 {[%clk 0:00:16]}  Nxf2+ {[%clk 0:00:12]} 29. Qxf2 {[%clk 0:00:15]}  Qxh3+ {[%clk 0:00:12]} 30. Rh2 {[%clk 0:00:13]}  Qg4 {[%clk 0:00:12]} 31. Rg2 {[%clk 0:00:07]}  Qh3+ {[%clk 0:00:12]} 32. Kg1 {[%clk 0:00:07]}  Qh5 {[%clk 0:00:08]} 33. d5 {[%clk 0:00:06]}  Qd1+ {[%clk 0:00:08]} 34. Qf1 {[%clk 0:00:07]}  Qxd5 {[%clk 0:00:09]} 35. Bd4 {[%clk 0:00:07]}  g5 {[%clk 0:00:09]} 36. Qb1 {[%clk 0:00:07]}  Kg6 {[%clk 0:00:08]} 37. Qb8 {[%clk 0:00:06]}  Kh5 {[%clk 0:00:08]} 38. Qe8+ {[%clk 0:00:06]}  Kh4 {[%clk 0:00:08]} 39. Qg6 {[%clk 0:00:06]}  Nxe3 {[%clk 0:00:05]} 40. Qxh6# {[%clk 0:00:05]} 1-0


[Site "https://www.chess.com"]